fUSD/lending_fUSD_20250814
["ID","MTS","AMOUNT","RATE_DAILY","PERIOD"]
[379194483,1755181864576,-4395.5,0.00027397,2]
[379194484,1755181864586,-6775.84,0.00027397,2]
[379194485,1755181864596,-400.0,0.00027397,2]
[379194486,1755181864606,-6368.59,0.00027397,2]
[379194487,1755181864616,-4958.48,0.00027397,2]
[379194488,1755181864626,-529.88,0.00027397,2]
[379194489,1755181864636,-1945.08,0.00027397,2]
[379194490,1755181864648,-1639.48,0.00027397,2]
[379194491,1755181864658,-400.0,0.00027397,2]
[379194492,1755181864667,-400.0,0.00027397,2]
[379194493,1755181864677,-151.0,0.00027397,7]
[379194494,1755181864687,-538.07070943,0.00027397,2]
[379194495,1755181864696,-4916.97,0.00027397,2]
[379194496,1755181864707,-400.0,0.00027397,2]
[379194497,1755181864717,-6758.73,0.00027397,2]
[379194498,1755181864727,-400.0,0.00027397,2]
[379194499,1755181864737,-400.0,0.00027397,2]
[379194500,1755181864747,-400.0,0.00027397,2]
[379194501,1755181864757,-400.0,0.00027397,2]
[379194502,1755181864766,-151.0,0.00027397,7]
[379194503,1755181864776,-4235.42,0.00027397,2]
[379194504,1755181864787,-6622.93,0.00027397,2]
[379194505,1755181864797,-1119.27,0.00027397,2]
[379194506,1755181864807,-400.0,0.00027397,2]
[379194507,1755181864817,-3113.96,0.00027397,2]
[379194508,1755181864827,-1330.52,0.00027397,2]
[379194509,1755181864837,-459.49,0.00027397,2]
[379194510,1755181864847,-18954.65,0.00027397,2]
[379194511,1755181864858,-3274.74,0.00027397,2]
[379194512,1755181864867,-623.52,0.00027397,2]
[379194513,1755181864878,-561.95,0.00027397,2]
[379194514,1755181864888,-435.88332264,0.00027397,2]
[379194515,1755181864900,-5629.63,0.00027397,2]
[379194516,1755181864914,-5491.09,0.00027397,2]
[379194517,1755181864924,-393.13269348,0.00027397,2]
[379194518,1755181864934,-2654.16,0.00027397,2]
[379194519,1755181864943,-400.0,0.00027397,2]
[379194520,1755181864953,-400.0,0.00027397,2]
[379194521,1755181864963,-9947.73,0.00027397,2]
[379194522,1755181864972,-3492.06,0.00027397,2]
[379194523,1755181864982,-4754.78,0.00027397,2]
[379194524,1755181864992,-2534.8,0.00027397,2]
[379194525,1755181865002,-400.0,0.00027397,2]
[379194526,1755181865014,-4791.31,0.00027397,2]
[379194527,1755181865024,-2320.62,0.00027397,2]
[379194528,1755181865034,-4404.0,0.00027397,2]
[379194529,1755181865045,-400.0,0.00027397,2]
[379194530,1755181865054,-400.0,0.00027397,2]
[379194531,1755181865063,-401.03582159,0.00027397,2]
[379194532,1755181865073,-400.0,0.00027397,2]
[379194533,1755181865083,-400.0,0.00027397,2]
[379194534,1755181865094,-1587.37,0.00027397,2]
[379194535,1755181865105,-391.96647302,0.00027397,2]
[379194536,1755181866056,-1563.144,0.00027397,2]
[379194537,1755181866079,-332.43172732,0.00027397,2]
[379194538,1755181867429,-175.327081,0.000189,2]
[379194539,1755181867439,-150.0,0.00025868,2]
[379194540,1755181867449,-150.0,0.00025971,2]
[379194541,1755181867459,-150.0,0.00026209,2]
[379194542,1755181867468,-150.0,0.00026339,2]
[379194543,1755181867478,-150.0,0.00027107,2]
[379194544,1755181867487,-150.0,0.00027156,2]
[379194545,1755181867497,-325.18092896,0.00027397,2]
[379194546,1755181867521,-4061.5968707,0.00027397,2]
[379194547,1755181867531,-12786.77,0.00027397,2]
[379194548,1755181867541,-14661.19,0.00027397,2]
[379194549,1755181867551,-3308.73,0.00027397,2]
[379194550,1755181867561,-3868.52,0.00027397,2]
[379194551,1755181867571,-6747.29,0.00027397,2]
[379194552,1755181867580,-484.27,0.00027397,2]
[379194553,1755181867590,-400.0,0.00027397,2]
[379194554,1755181867600,-7746.64,0.00027397,2]
[379194555,1755181867610,-4537.07,0.00027397,2]
[379194556,1755181867619,-573.66,0.00027397,2]
[379194557,1755181867629,-861.38,0.00027397,2]
[379194558,1755181867638,-645.45,0.00027397,2]
[379194559,1755181867651,-400.0,0.00027397,2]
[379194560,1755181867661,-4097.28,0.00027397,2]
[379194561,1755181867670,-2663.02,0.00027397,2]
[379194562,1755181867680,-3362.16,0.00027397,2]
[379194563,1755181867690,-400.0,0.00027397,2]
[379194564,1755181867699,-400.0,0.00027397,2]
[379194565,1755181867709,-400.0,0.00027397,2]
[379194566,1755181867718,-6696.22,0.00027397,2]
[379194567,1755181867728,-438.52,0.00027397,2]
[379194568,1755181867738,-400.0,0.00027397,2]
[379194569,1755181867747,-514.04,0.00027397,2]
[379194570,1755181867756,-400.0,0.00027397,2]
[379194571,1755181867765,-5233.68,0.00027397,2]
[379194572,1755181867775,-2471.12,0.00027397,2]
[379194573,1755181867784,-1694.75,0.00027397,2]
[379194574,1755181867793,-655.06,0.00027397,2]
[379194575,1755181867803,-400.0,0.00027397,2]
[379194576,1755181867812,-1726.54,0.00027397,2]
[379194577,1755181867821,-2429.87,0.00027397,2]
[379194578,1755181867831,-400.0,0.00027397,2]
[379194579,1755181867840,-2017.82,0.00027397,2]
[379194580,1755181867849,-1743.63,0.00027397,2]
[379194581,1755181867859,-7782.01,0.00027397,2]
[379194582,1755181867869,-725.68,0.00027397,2]
[379194583,1755181867878,-10510.93,0.00027397,2]
[379194584,1755181867887,-400.0,0.00027397,2]
[379194585,1755181867901,-400.0,0.00027397,2]
[379194586,1755181867911,-1984.81,0.00027397,2]
[379194587,1755181867920,-7797.49,0.00027397,2]
[379194588,1755181867930,-400.0,0.00027397,2]
[379194589,1755181867939,-469.99,0.00027397,2]
[379194590,1755181867948,-400.0,0.00027397,2]
[379194591,1755181867958,-4683.3,0.00027397,2]
[379194592,1755181867967,-5190.98,0.00027397,2]
[379194593,1755181867978,-1022.27,0.00027397,2]
[379194594,1755181867988,-4910.09,0.00027397,2]
[379194595,1755181867997,-1435.1,0.00027397,2]
[379194596,1755181868011,-3813.36,0.00027397,2]
[379194597,1755181868029,-5849.11,0.00027397,2]
[379194598,1755181868040,-16090.47,0.00027397,2]
[379194599,1755181868050,-8809.06,0.00027397,2]
[379194600,1755181868059,-2954.09,0.00027397,2]
[379194601,1755181868068,-1099.47,0.00027397,2]
[379194602,1755181868078,-9334.8,0.00027397,2]
[379194603,1755181868087,-400.0,0.00027397,2]
[379194604,1755181868096,-400.0,0.00027397,2]
[379194605,1755181868106,-400.0,0.00027397,2]
[379194606,1755181868114,-163.995938,0.00027397,2]
[379194607,1755181868124,-400.0,0.00027397,2]
[379194608,1755181868134,-2455.48,0.00027397,2]
[379194609,1755181868144,-763.65,0.00027397,2]
[379194610,1755181868154,-1477.75,0.00027397,2]
[379194611,1755181868164,-2105.98,0.00027397,2]
[379194612,1755181868173,-2464.61,0.00027397,2]
[379194613,1755181868183,-1973.46,0.00027397,2]
[379194614,1755181868193,-400.0,0.00027397,2]
[379194615,1755181868202,-3570.73,0.00027397,2]
[379194616,1755181868211,-7237.68,0.00027397,2]
[379194617,1755181868221,-152.47021,0.00027397,2]
[379194618,1755181868231,-1593.79,0.00027397,2]
[379194619,1755181868241,-898.53,0.00027397,2]
[379194620,1755181868252,-400.0,0.00027397,2]
[379194621,1755181868262,-2782.51,0.00027397,2]
[379194622,1755181868271,-400.0,0.00027397,2]
[379194623,1755181868280,-3318.48,0.00027397,2]
[379194624,1755181868290,-400.0,0.00027397,2]
[379194625,1755181868300,-955.28,0.00027397,2]
[379194626,1755181868310,-311.3169798,0.00027397,2]
[379194627,1755181868402,-1.05014631,0.00027397,2]
[379194628,1755181868426,-310.319001,0.00027397,2]
[379194629,1755181870653,-359.44184535,0.0001899,2]
[379194630,1755181870663,-159.16,0.00019637,2]
[379194631,1755181870672,-159.16,0.0001965,2]
[379194632,1755181870682,-159.16,0.00019663,2]
[379194633,1755181870691,-159.16,0.00019676,2]
[379194634,1755181870701,-359.44184535,0.0002479,2]
[379194635,1755181870710,-150.0,0.00025424,2]
[379194636,1755181870719,-150.0,0.00025446,2]
[379194637,1755181870729,-150.0,0.00025547,2]
[379194638,1755181870739,-150.0,0.00026071,2]
[379194639,1755181870748,-150.0,0.00026071,2]
[379194640,1755181870758,-150.0,0.0002627,2]
[379194641,1755181870767,-150.0,0.00026287,2]
[379194642,1755181870777,-150.0,0.00026979,2]
[379194643,1755181870786,-150.0,0.00027129,2]
[379194644,1755181870796,-359.44184535,0.00027387,2]
[379194645,1755181870806,-1271.86387289,0.00027397,2]
[379194646,1755181870815,-1571.38429106,0.00027397,2]
[379194647,1755181871115,-501.06794043,0.00027397,2]
[379194648,1755181871131,-9104.28776851,0.00027397,2]
[379194649,1755181871141,-200.0,0.00027397,2]
[379194650,1755181871153,-400.0,0.00027397,2]
[379194651,1755181871163,-500.0,0.00027397,2]
[379194652,1755181871173,-400.0,0.00027397,2]
[379194653,1755181871182,-500.0,0.00027397,2]
[379194654,1755181871192,-500.0,0.00027397,2]
[379194655,1755181871202,-400.0,0.00027397,2]
[379194656,1755181871212,-500.0,0.00027397,2]
[379194657,1755181871221,-7091.36,0.00027397,2]
[379194658,1755181871233,-1175.96,0.00027397,2]
[379194659,1755181871243,-466.76051619,0.00027397,2]
[379194661,1755181871252,-733.31,0.00027397,2]
[379194662,1755181871262,-1672.5404448,0.00027397,2]
[379194663,1755181871282,-864.2595552,0.00027397,2]
[379194664,1755181871292,-5411.06,0.00027397,2]
[379194665,1755181871301,-400.0,0.00027397,2]
[379194666,1755181871311,-400.0,0.00027397,2]
[379194667,1755181871320,-1838.22,0.00027397,2]
[379194668,1755181871331,-400.0,0.00027397,2]
[379194669,1755181871340,-1250.46,0.00027397,2]
[379194670,1755181871350,-6616.92977225,0.00027397,2]
[379194671,1755181871361,-611.84567255,0.00027397,2]
[379194672,1755181874942,855.33,0.00024685,30]
[379194673,1755181886276,-100.0,0.00018899,2]
[379194675,1755181890330,-200.0,0.00018899,2]
[379194676,1755181893907,-232.02176672,0.000189,2]
[379194677,1755181894197,35.95646656,0.0001862,2]
[379194678,1755181897791,-196.06530016,0.0001862,2]
[379194679,1755181901133,-400.0,0.0001862,2]
[379194680,1755181917106,-1413.54023328,0.0001862,2]
[379194681,1755181917138,-187.186,0.0001862,2]
[379194682,1755181917166,-506.67658515,0.00018973,2]
[379194683,1755181917197,-502.9880039,0.00018973,2]
[379194684,1755181917226,-276.74513007,0.00018999,2]
[379194685,1755181922167,300.0,0.00018899,2]
[379194686,1755181922203,1000.0,0.000187,2]
[379194687,1755181922307,998.8580952,0.00018846,2]
[379194688,1755181924717,-1.1419048,0.00018846,2]
[379194689,1755181953373,-500.0,0.00018973,2]
[379194695,1755182013438,200.5,0.00013699,2]
[379194701,1755182269739,303.0,0.00027,120]
[379194702,1755182278656,153.0,0.00027,120]
[379194706,1755182315158,301.0,0.00026027,120]
[379194719,1755182696758,500.0,0.00018001,2]
[379194720,1755182707051,500.0,0.00018001,2]
[379194724,1755182791962,578.53,0.00026573,120]
[379194741,1755182968053,1993393.56,0.00027,120]
[379194752,1755183032236,-471.60464441,0.00019225,2]
[379194753,1755183032247,-528.39535559,0.00019225,2]
[379194754,1755183032257,-1000.0,0.00019225,2]
[379194755,1755183032266,-300.0,0.00019324,2]
[379194756,1755183032276,-1200.0,0.00019324,2]
[379194757,1755183032286,-200.0,0.00019325,2]
[379194758,1755183032296,-500.0,0.00019325,2]
[379194759,1755183032305,-151.0,0.00019325,2]
[379194760,1755183032314,-500.0,0.00019325,2]
[379194761,1755183032324,-500.0,0.00019325,2]
[379194762,1755183032336,-500.0,0.00019325,2]
[379194763,1755183032346,-151.0,0.00019325,2]
[379194764,1755183032357,-500.0,0.00019325,2]
[379194765,1755183032367,-151.0,0.00019325,2]
[379194766,1755183032377,-500.0,0.00019325,2]
[379194767,1755183032387,-500.0,0.00019325,2]
[379194768,1755183032397,-151.0,0.00019325,2]
[379194769,1755183032407,-500.0,0.00019325,2]
[379194770,1755183032418,-151.0,0.00019325,2]
[379194771,1755183032429,-500.0,0.00019325,2]
[379194772,1755183032440,-151.0,0.00019325,2]
[379194773,1755183032449,-325.21004439,0.00019325,2]
[379194775,1755183032459,-151.0,0.00019325,2]
[379194777,1755183032469,-151.0,0.00019325,2]
[379194779,1755183032479,-151.0,0.00019325,2]
[379194781,1755183032489,-151.0,0.00019325,2]
[379194782,1755183032498,-151.0,0.00019325,2]
[379194783,1755183032508,-151.0,0.00019325,2]
[379194784,1755183032519,-500.0,0.0001938,2]
[379194785,1755183032528,-275.06213272,0.00019435,2]
[379194786,1755183032540,-224.93786728,0.00019435,2]
[379194788,1755183032549,-500.0,0.0001949,2]
[379194790,1755183032558,-540.8969765,0.00019545,2]
[379194792,1755183032567,-159.16,0.00019689,2]
[379194794,1755183032577,-159.16,0.00019702,2]
[379194796,1755183032586,-159.16,0.00019715,2]
[379194798,1755183032595,-342.99236697,0.0002,2]
[379194800,1755183032604,-200.5,0.00020187,2]
[379194802,1755183032614,-276.74513007,0.00020898,2]
[379194803,1755183032623,-163.03,0.000209,2]
[379194806,1755183032632,-420.0,0.00021056,2]
[379194808,1755183032643,-1000.0,0.00021084,2]
[379194809,1755183032652,-1000.0,0.00021084,2]
[379194811,1755183032662,-1000.0,0.00021084,2]
[379194813,1755183032672,-520.0,0.00021158,2]
[379194816,1755183032682,-303.77,0.00021161,2]
[379194818,1755183032692,-1751.77654811,0.0002139,2]
[379194820,1755183032702,-600.0,0.00021917,2]
[379194822,1755183032712,-651.9715464,0.00021917,2]
[379194824,1755183032721,-498.21,0.00022,2]
[379194826,1755183032730,-164.77096992,0.00022064,2]
[379194828,1755183032740,-500.0,0.00022164,2]
[379194830,1755183032751,-5509.0,0.000223,3]
[379194832,1755183032760,-5513.0,0.000227,5]
[379194834,1755183032770,-587.0,0.00022944,2]
[379194836,1755183032780,-617.1,0.00023432,2]
[379194838,1755183032789,-1000.0,0.00023584,2]
[379194840,1755183032798,-1146.02,0.00023584,2]
[379194841,1755183032808,-578.53,0.00023621,2]
[379194843,1755183032818,-165.26,0.00023628,2]
[379194845,1755183032828,-200.0,0.00023674,2]
[379194847,1755183032839,-4557.0,0.00023683,2]
[379194849,1755183032850,-150.0,0.00023683,2]
[379194851,1755183032860,-250.0,0.00023703,2]
[379194853,1755183032872,-200.0,0.00023703,2]
[379194855,1755183032883,-930.07,0.00023714,2]
[379194857,1755183032893,-316.89,0.00023726,2]
[379194859,1755183032903,-1806.84,0.00023743,2]
[379194861,1755183032913,-170.0,0.0002384,7]
[379194863,1755183032923,-3489.15,0.00023892,2]
[379194865,1755183032932,-357.21123811,0.00023971,2]
[379194867,1755183032942,-504.0,0.00024,2]
[379194869,1755183032951,-10026.11,0.00024071,2]
[379194871,1755183032960,-746.23,0.00024075,2]
[379194873,1755183032970,-498.21,0.00024179,2]
[379194875,1755183032979,-500.0,0.00024192,2]
[379194877,1755183032989,-206.21,0.00024423,2]
[379194879,1755183032999,-150.0,0.00024423,2]
[379194881,1755183033009,-666.0,0.00024423,3]
[379194883,1755183033019,-165.55,0.00024426,2]
[379194885,1755183033029,-316.89,0.00024616,2]
[379194887,1755183033040,-504.0,0.00024651,2]
[379194889,1755183033052,-2000.0,0.00024658,15]
[379194891,1755183033062,-150.0,0.00024748,2]
[379194893,1755183033073,-150.0,0.00024756,2]
[379194895,1755183033083,-245.54237574,0.00024861,2]
[379194897,1755183033095,-500.0,0.00024967,2]
[379194899,1755183033105,-287.9817987,0.00024973,2]
[379194901,1755183033118,-150.0,0.00024995,2]
[379194903,1755183033128,-823.0,0.00025,2]
[379194905,1755183033138,-330.42122167,0.00025086,2]
[379194907,1755183033149,-372.86064464,0.00025199,2]
[379194909,1755183033159,-504.0,0.00025302,3]
[379194911,1755183033170,-415.30006761,0.00025312,2]
[379194913,1755183033181,-457.73949057,0.00025424,2]
[379194915,1755183033195,-165.55,0.00025434,2]
[379194917,1755183033206,-316.89,0.00025505,2]
[379194919,1755183033216,-500.17891354,0.00025537,2]
[379194921,1755183033225,-542.61833651,0.0002565,2]
[379194923,1755183033235,-1000.0,0.00025672,2]
[379194925,1755183033246,-585.05775947,0.00025763,2]
[379194927,1755183033256,-150.0,0.00025764,2]
[379194929,1755183033266,-150.0,0.00025764,2]
[379194931,1755183033276,-2191.06,0.00025786,2]
[379194933,1755183033287,-150.99,0.00025786,2]
[379194935,1755183033297,-627.49718244,0.00025875,2]
[379194937,1755183033308,-150.0,0.000259,2]
[379194939,1755183033318,-504.0,0.00025953,4]
[379194941,1755183033329,-669.93660541,0.00025988,2]
[379194943,1755183033341,-1000.0,0.00026073,2]
[379194945,1755183033351,-712.37602837,0.00026101,2]
[379194947,1755183033361,-150.0,0.00026132,4]
[379194949,1755183033373,-150.0,0.00026167,2]
[379194951,1755183033385,-754.81545134,0.00026214,2]
[379194953,1755183033395,-1000.0,0.00026317,2]
[379194955,1755183033405,-797.25487431,0.00026326,2]
[379194957,1755183033416,-498.21,0.00026358,7]
[379194959,1755183033426,-1815.1567,0.00026387,2]
[379194961,1755183033436,-230.7578,0.00026387,2]
[379194963,1755183033446,-275.4384,0.00026387,2]
[379194965,1755183033456,-4008.5611,0.00026387,2]
[379194967,1755183033466,-316.89,0.00026395,2]
[379194969,1755183033476,-150.0,0.00026414,2]
[379194971,1755183033487,-839.69429728,0.00026439,2]
[379194973,1755183033496,-165.55,0.00026441,2]
[379194975,1755183033506,-150.0,0.00026443,2]
[379194977,1755183033516,-150.0,0.00026476,2]
[379194979,1755183033526,-300.0,0.00026487,2]
[379194981,1755183033536,-200.0,0.00026487,2]
[379194983,1755183033546,-200.0,0.00026487,2]
[379194985,1755183033556,-200.0,0.00026487,2]
[379194987,1755183033566,-200.0,0.00026487,2]
[379194989,1755183033576,-200.0,0.00026487,2]
[379194991,1755183033586,-200.0,0.00026487,2]
[379194993,1755183033596,-200.0,0.00026487,2]
[379194995,1755183033606,-500.0,0.00026487,2]
[379194997,1755183033618,-200.0,0.00026487,2]
[379194999,1755183033628,-500.0,0.00026487,2]
[379195001,1755183033638,-500.0,0.00026487,2]
[379195003,1755183033648,-200.0,0.00026487,2]
[379195005,1755183033658,-3000.0,0.00026487,2]
[379195007,1755183033668,-500.0,0.00026487,2]
[379195009,1755183033679,-285.61442275,0.00026487,2]
[379195011,1755183033689,-500.0,0.00026487,2]
[379195014,1755183033699,-200.0,0.00026487,2]
[379195016,1755183033712,-500.0,0.00026487,2]
[379195018,1755183033722,-200.0,0.00026487,2]
[379195019,1755183033733,-500.0,0.00026487,2]
[379195021,1755183033743,-500.0,0.00026487,2]
[379195023,1755183033753,-200.0,0.00026487,2]
[379195025,1755183033763,-500.0,0.00026487,2]
[379195027,1755183033774,-200.0,0.00026487,2]
[379195029,1755183033785,-600.0,0.00026487,2]
[379195031,1755183033796,-500.0,0.00026487,2]
[379195033,1755183033807,-200.0,0.00026487,2]
[379195035,1755183033818,-500.0,0.00026487,2]
[379195038,1755183033829,-200.0,0.00026487,2]
[379195039,1755183033839,-500.0,0.00026487,2]
[379195041,1755183033849,-500.0,0.00026487,2]
[379195043,1755183033859,-200.0,0.00026487,2]
[379195046,1755183033874,-200.0,0.00026487,2]
[379195048,1755183033884,-200.0,0.00026487,2]
[379195050,1755183033894,-200.0,0.00026487,2]
[379195052,1755183033905,-151.0,0.00026487,2]
[379195053,1755183033915,-200.0,0.00026487,2]
[379195055,1755183033925,-1000.0,0.00026487,2]
[379195058,1755183033935,-2000.0,0.00026487,2]
[379195059,1755183033945,-209.40437684,0.00026487,2]
[379195061,1755183033955,-500.0,0.00026487,2]
[379195063,1755183033965,-500.0,0.00026487,2]
[379195065,1755183033974,-212.50731615,0.00026487,2]
[379195157,1755183035390,-287.49268385,0.00026487,2]
[379195158,1755183035400,-500.0,0.00026487,2]
[379195159,1755183035410,-250.0,0.00026487,2]
[379195160,1755183035420,-500.0,0.00026487,2]
[379195161,1755183035429,-500.0,0.00026487,2]
[379195162,1755183035439,-151.0,0.00026487,2]
[379195163,1755183035448,-250.0,0.00026487,2]
[379195164,1755183035457,-500.0,0.00026487,2]
[379195165,1755183035467,-250.0,0.00026487,2]
[379195166,1755183035476,-500.0,0.00026487,2]
[379195167,1755183035486,-250.0,0.00026487,2]
[379195168,1755183035495,-373.93133996,0.00026487,2]
[379195169,1755183035504,-500.0,0.00026487,2]
[379195170,1755183035513,-500.0,0.00026487,2]
[379195171,1755183035524,-277.35679052,0.00026487,2]
[379195172,1755183035533,-500.0,0.00026487,2]
[379195173,1755183035543,-500.0,0.00026487,2]
[379195174,1755183035552,-500.0,0.00026487,2]
[379195175,1755183035562,-500.0,0.00026487,2]
[379195176,1755183035571,-500.0,0.00026487,2]
[379195177,1755183035583,-500.0,0.00026487,2]
[379195178,1755183035597,-500.0,0.00026487,2]
[379195179,1755183035607,-500.0,0.00026487,2]
[379195180,1755183035620,-500.0,0.00026487,2]
[379195181,1755183035632,-160.0,0.00026487,2]
[379195182,1755183035648,-500.0,0.00026487,2]
[379195183,1755183035658,-500.0,0.00026487,2]
[379195184,1755183035668,-500.0,0.00026487,2]
[379195185,1755183035678,-500.0,0.00026487,2]
[379195186,1755183035688,-500.0,0.00026487,2]
[379195187,1755183035698,-500.0,0.00026487,2]
[379195188,1755183035708,-500.0,0.00026487,2]
[379195189,1755183035718,-500.0,0.00026487,2]
[379195190,1755183035728,-500.0,0.00026487,2]
[379195191,1755183035738,-422.28006855,0.00026487,2]
[379195192,1755183035747,-151.0,0.00026487,2]
[379195193,1755183035757,-151.0,0.00026487,2]
[379195194,1755183035767,-151.0,0.00026487,2]
[379195195,1755183035776,-151.0,0.00026487,2]
[379195196,1755183035786,-151.0,0.00026487,2]
[379195197,1755183035796,-151.0,0.00026487,2]
[379195198,1755183035806,-151.0,0.00026487,2]
[379195199,1755183035815,-151.0,0.00026487,2]
[379195200,1755183035825,-792.0,0.000265,2]
[379195201,1755183035835,-150.0,0.00026501,2]
[379195202,1755183035845,-1000.0,0.00026506,2]
[379195203,1755183035854,-150.0,0.00026508,2]
[379195204,1755183035865,-1000.0,0.00026532,2]
[379195205,1755183035874,-150.0,0.00026534,2]
[379195206,1755183035883,-882.13372024,0.00026552,2]
[379195207,1755183035893,-150.0,0.00026579,2]
[379195208,1755183035903,-165.26,0.00026582,2]
[379195209,1755183035913,-150.0,0.00026596,2]
[379195210,1755183035923,-504.0,0.00026605,4]
[379195211,1755183035943,-150.0,0.00026613,2]
[379195212,1755183035953,-150.0,0.00026614,2]
[379195213,1755183035962,-150.0,0.00026635,2]
[379195214,1755183035971,-150.0,0.00026637,2]
[379195215,1755183035981,-150.0,0.00026644,2]
[379195216,1755183035990,-150.0,0.00026648,2]
[379195217,1755183036000,-924.57314321,0.00026665,2]
[379195218,1755183036010,-150.0,0.00026668,2]
[379195219,1755183036019,-360.13,0.00026668,2]
[379195220,1755183036028,-200.5,0.00026676,2]
[379195221,1755183036038,-1000.0,0.00026681,2]
[379195222,1755183036047,-150.0,0.00026683,2]
[379195223,1755183036056,-105.91355123,0.00026686,2]
[379195224,1755183036069,-44.08644877,0.00026686,2]
[379195225,1755183036078,-150.0,0.00026692,2]
[379195226,1755183036087,-150.0,0.00026708,2]
[379195227,1755183036097,-150.0,0.00026712,2]
[379195228,1755183036105,-391.9215559,0.00026731,2]
[379195229,1755183036119,-225.1784441,0.00026731,2]
[379195230,1755183036128,-967.01256618,0.00026777,2]
[379195231,1755183036137,-161.36379841,0.0002678,2]
[379195232,1755183036146,-634.61719061,0.00026799,2]
[379195233,1755183036158,-766.22367068,0.00026799,2]
[379195234,1755183036201,-1590.75849,0.00026799,2]
[379195235,1755183036340,-1070.16720355,0.00026799,2]
[379195236,1755183036350,-1000.0,0.000268,2]
[379195237,1755183036360,-915.56044041,0.000268,2]
[379195238,1755183036372,-2500.0,0.000268,2]
[379195239,1755183036381,-159.86847976,0.000268,2]
[379195240,1755183036391,-150.0,0.00026826,2]
[379195241,1755183036400,-150.0,0.0002683,2]
[379195242,1755183036411,-250.0,0.00026834,2]
[379195243,1755183036421,-150.0,0.00026838,2]
[379195244,1755183036431,-150.0,0.00026847,2]
[379195245,1755183036440,-150.0,0.00026847,2]
[379195246,1755183036450,-846.12,0.00026849,2]
[379195247,1755183036459,-797.99,0.00026849,2]
[379195248,1755183036468,-150.0,0.00026868,2]
[379195249,1755183036477,-4061.76655481,0.0002687,2]
[379195250,1755183036487,-915.56044032,0.0002687,2]
[379195251,1755183036496,-244.88642245,0.00026886,2]
[379195252,1755183036506,-462.20059575,0.00026889,2]
[379195253,1755183036515,-1009.45198913,0.0002689,2]
[379195254,1755183036526,-32517.3538224,0.0002689,2]
[379195255,1755183036535,-400.0,0.00026899,2]
[379195256,1755183036544,-34532.0512,0.000269,2]
[379195257,1755183036554,-28470.09773261,0.000269,2]
[379195258,1755183036565,-1245.3153,0.000269,2]
[379195300,1755183039692,-150.0,0.00025139,2]
[379195301,1755183039702,-150.0,0.00025399,2]
[379195302,1755183039712,-150.0,0.00026273,2]
[379195303,1755183039722,-150.0,0.00026529,2]
[379195304,1755183039733,-150.0,0.00026622,2]
[379195305,1755183039743,-160594.71696739,0.000269,2]
[379195306,1755183039753,-1000.0,0.000269,2]
[379195307,1755183039763,-150.0,0.000269,2]
[379195308,1755183039772,-150.0,0.00026901,2]
[379195309,1755183039783,-150.0,0.00026921,2]
[379195310,1755183039793,-295.34,0.00026922,2]
[379195312,1755183039802,-150.0,0.00026929,2]
[379195313,1755183039812,-150.0,0.00026934,2]
[379195314,1755183039822,-150.0,0.00026938,2]